fUST/lending_fUST_20250525
["ID","MTS","AMOUNT","RATE_DAILY","PERIOD"]
[362286110,1748157051126,-472.10452465,0.00019452,2]
[362286111,1748157051136,-454.05980753,0.00019452,2]
[362286112,1748157051145,-430.0,0.00019452,2]
[362286113,1748157051154,-430.0,0.00019452,2]
[362286114,1748157051164,-432.42692126,0.00019452,2]
[362286115,1748157051173,-430.0,0.00019452,2]
[362286116,1748157051182,-430.0,0.00019452,2]
[362286117,1748157051191,-192.08360853,0.00019452,2]
[362286118,1748157051200,-439.8107558,0.00019452,2]
[362286119,1748157051209,-490.0,0.00019452,2]
[362286120,1748157051218,-406.94223898,0.00019452,2]
[362286121,1748157051228,-430.0,0.00019452,2]
[362286122,1748157051237,-167.96451252,0.00019452,2]
[362286123,1748157051246,-430.0,0.00019452,2]
[362286124,1748157051255,-430.0,0.00019452,2]
[362286125,1748157051264,-430.0,0.00019452,2]
[362286126,1748157051273,-292.182909,0.00019452,2]
[362286127,1748157051283,-470.0,0.00019452,2]
[362286128,1748157051292,-430.0,0.00019452,2]
[362286129,1748157051301,-430.0,0.00019452,2]
[362286130,1748157051311,-440.0,0.00019452,2]
[362286131,1748157051320,-477.18691418,0.00019452,2]
[362286132,1748157051329,-470.0,0.00019452,2]
[362286133,1748157051338,-480.1771151,0.00019452,2]
[362286134,1748157051347,-352.20381841,0.00019452,2]
[362286135,1748157051358,-470.0,0.00019452,2]
[362286136,1748157051369,-430.0,0.00019452,2]
[362286137,1748157051378,-451.42534179,0.00019452,2]
[362286138,1748157051387,-4430.27,0.00019452,2]
[362286139,1748157051396,-430.0,0.00019452,2]
[362286140,1748157051406,-430.0,0.00019452,2]
[362286141,1748157051416,-151.0,0.00019452,2]
[362286142,1748157051426,-430.0,0.00019452,2]
[362286143,1748157051435,-451.57802046,0.00019452,2]
[362286144,1748157051445,-354.97054936,0.00019452,2]
[362286145,1748157051454,-151.0,0.00019452,2]
[362286146,1748157051464,-430.0,0.00019452,2]
[362286147,1748157051473,-430.0,0.00019452,2]
[362286148,1748157051482,-430.0,0.00019452,2]
[362286149,1748157051492,-430.0,0.00019452,2]
[362286150,1748157051501,-303.94458186,0.00019452,2]
[362286151,1748157051510,-437.97430761,0.00019452,2]
[362286152,1748157051519,-405.2516082,0.00019452,2]
[362286153,1748157051529,-430.0,0.00019452,2]
[362286154,1748157051538,-405.5798069,0.00019452,2]
[362286155,1748157051548,-418.37791572,0.00019452,2]
[362286156,1748157051557,-456.96871785,0.00019452,2]
[362286157,1748157051566,-360.84530803,0.00019452,2]
[362286158,1748157051576,-538.38202451,0.00019452,2]
[362286159,1748157051586,-430.0,0.00019452,2]
[362286160,1748157051595,-188.80009099,0.00019452,2]
[362286161,1748157051604,-430.0,0.00019452,2]
[362286162,1748157051613,-168.555675,0.00019452,2]
[362286163,1748157051622,-207.69540789,0.00019452,2]
[362286164,1748157051631,-168.555675,0.00019452,2]
[362286165,1748157051641,-151.0,0.00019452,2]
[362286166,1748157051650,-440.0,0.00019452,2]
[362286167,1748157051659,-430.0,0.00019452,2]
[362286168,1748157051669,-430.0,0.00019452,2]
[362286169,1748157051678,-151.0,0.00019452,2]
[362286170,1748157051688,-709.28,0.00019452,2]
[362286171,1748157051698,-430.0,0.00019452,2]
[362286172,1748157051707,-430.0,0.00019452,2]
[362286173,1748157051716,-439.15417083,0.00019452,2]
[362286174,1748157051725,-430.0,0.00019452,2]
[362286175,1748157051735,-430.0,0.00019452,2]
[362286176,1748157051744,-430.0,0.00019452,2]
[362286177,1748157051754,-430.0,0.00019452,2]
[362286178,1748157051763,-430.0,0.00019452,2]
[362286179,1748157051773,-430.0,0.00019452,2]
[362286180,1748157051782,-445.29519821,0.00019452,2]
[362286181,1748157051792,-430.0,0.00019452,2]
[362286182,1748157051802,-430.0,0.00019452,2]
[362286183,1748157051811,-430.0,0.00019452,2]
[362286184,1748157051821,-430.0,0.00019452,2]
[362286185,1748157051830,-430.0,0.00019452,2]
[362286186,1748157051840,-430.0,0.00019452,2]
[362286187,1748157051849,-430.0,0.00019452,2]
[362286188,1748157051859,-430.0,0.00019452,2]
[362286189,1748157051869,-430.0,0.00019452,2]
[362286190,1748157051879,-321.47189589,0.00019452,2]
[362286191,1748157051889,-430.0,0.00019452,2]
[362286192,1748157051899,-430.0,0.00019452,2]
[362286193,1748157051909,-487.12,0.00019452,2]
[362286194,1748157051920,-430.0,0.00019452,2]
[362286195,1748157051931,-440.0,0.00019452,2]
[362286196,1748157051944,-430.0,0.00019452,2]
[362286197,1748157051953,-430.0,0.00019452,2]
[362286198,1748157051963,-430.0,0.00019452,2]
[362286199,1748157051974,-575.81,0.00019452,2]
[362286200,1748157051983,-430.0,0.00019452,2]
[362286201,1748157051993,-430.0,0.00019452,2]
[362286202,1748157052002,-430.0,0.00019452,2]
[362286203,1748157052012,-430.0,0.00019452,2]
[362286204,1748157052022,-305.89976859,0.00019452,2]
[362286205,1748157052032,-430.0,0.00019452,2]
[362286206,1748157052041,-430.0,0.00019452,2]
[362286207,1748157052051,-430.0,0.00019452,2]
[362286208,1748157052061,-430.0,0.00019452,2]
[362286209,1748157052070,-436.805114,0.00019452,2]
[362286210,1748157052079,-430.0,0.00019452,2]
[362286211,1748157052089,-381.82320617,0.00019452,2]
[362286212,1748157052099,-430.0,0.00019452,2]
[362286213,1748157052110,-430.0,0.00019452,2]
[362286214,1748157052119,-430.0,0.00019452,2]
[362286215,1748157052127,-584.69,0.00019452,2]
[362286216,1748157052136,-430.0,0.00019452,2]
[362286217,1748157052146,-430.0,0.00019452,2]
[362286218,1748157052156,-1400.02,0.00019452,2]
[362286219,1748157052165,-430.0,0.00019452,2]
[362286220,1748157052175,-430.0,0.00019452,2]
[362286221,1748157052184,-371.69149029,0.00019452,2]
[362286222,1748157052194,-430.0,0.00019452,2]
[362286223,1748157052204,-456.05015292,0.00019452,2]
[362286224,1748157052213,-430.0,0.00019452,2]
[362286225,1748157052223,-430.0,0.00019452,2]
[362286226,1748157052232,-430.0,0.00019452,2]
[362286227,1748157052241,-400.0,0.00019452,2]
[362286228,1748157052251,-430.0,0.00019452,2]
[362286229,1748157052260,-430.0,0.00019452,2]
[362286230,1748157052269,-430.0,0.00019452,2]
[362286231,1748157052279,-800.36,0.00019452,2]
[362286232,1748157052288,-430.0,0.00019452,2]
[362286233,1748157052297,-456.51529572,0.00019452,2]
[362286234,1748157052307,-430.0,0.00019452,2]
[362286235,1748157052316,-430.0,0.00019452,2]
[362286236,1748157052325,-430.0,0.00019452,2]
[362286237,1748157052335,-430.0,0.00019452,2]
[362286238,1748157052343,-510.0,0.00019452,2]
[362286239,1748157052352,-430.0,0.00019452,2]
[362286240,1748157052362,-774.78,0.00019452,2]
[362286241,1748157052371,-430.0,0.00019452,2]
[362286242,1748157052381,-359.12123988,0.00019452,2]
[362286243,1748157052391,-430.0,0.00019452,2]
[362286244,1748157052400,-151.0,0.00019452,2]
[362286245,1748157052409,-373.0676339,0.00019452,2]
[362286246,1748157052419,-430.0,0.00019452,2]
[362286247,1748157052428,-430.0,0.00019452,2]
[362286248,1748157052437,-430.0,0.00019452,2]
[362286249,1748157052447,-430.0,0.00019452,2]
[362286250,1748157052456,-430.0,0.00019452,2]
[362286251,1748157052465,-1540.49,0.00019452,2]
[362286252,1748157052475,-368.32170513,0.00019452,2]
[362286253,1748157052484,-436.69522882,0.00019452,2]
[362286254,1748157052494,-430.0,0.00019452,2]
[362286255,1748157052504,-430.0,0.00019452,2]
[362286256,1748157052513,-430.0,0.00019452,2]
[362286257,1748157052523,-430.0,0.00019452,2]
[362286258,1748157052532,-430.0,0.00019452,2]
[362286259,1748157052542,-450.0,0.00019452,2]
[362286260,1748157052551,-430.0,0.00019452,2]
[362286261,1748157052561,-430.0,0.00019452,2]
[362286262,1748157052570,-430.0,0.00019452,2]
[362286263,1748157052580,-340.0,0.00019452,2]
[362286264,1748157052589,-430.0,0.00019452,2]
[362286265,1748157052598,-589.21,0.00019452,2]
[362286266,1748157052688,-430.0,0.00019452,2]
[362286267,1748157052697,-430.0,0.00019452,2]
[362286268,1748157052707,-415.11524398,0.00019452,2]
[362286269,1748157052716,-430.0,0.00019452,2]
[362286270,1748157052725,-430.0,0.00019452,2]
[362286271,1748157052734,-681.27,0.00019452,2]
[362286272,1748157052744,-1442.16,0.00019452,2]
[362286273,1748157052754,-430.0,0.00019452,2]
[362286274,1748157052763,-430.0,0.00019452,2]
[362286275,1748157052773,-430.0,0.00019452,2]
[362286276,1748157052782,-430.0,0.00019452,2]
[362286277,1748157052791,-430.0,0.00019452,2]
[362286278,1748157052801,-430.0,0.00019452,2]
[362286279,1748157052810,-430.0,0.00019452,2]
[362286280,1748157052819,-382.5572618,0.00019452,2]
[362286281,1748157052829,-430.0,0.00019452,2]
[362286282,1748157052839,-658.49,0.00019452,2]
[362286283,1748157052848,-435.47425429,0.00019452,2]
[362286284,1748157052859,-430.0,0.00019452,2]
[362286285,1748157052869,-673.43,0.00019452,2]
[362286286,1748157052880,-430.0,0.00019452,2]
[362286287,1748157052890,-430.0,0.00019452,2]
[362286288,1748157052900,-430.0,0.00019452,2]
[362286289,1748157052910,-430.0,0.00019452,2]
[362286290,1748157052920,-430.0,0.00019452,2]
[362286291,1748157052931,-500.0,0.00019524,2]
[362286292,1748157052943,-160.67606443,0.00019524,2]
[362286293,1748157052952,-500.0,0.00019627,2]
[362286294,1748157052962,-420.0,0.00019668,2]
[362286295,1748157052972,-430.0,0.00019726,2]
[362286296,1748157052982,-430.0,0.00019726,2]
[362286297,1748157052991,-351.35072865,0.00019726,2]
[362286298,1748157053001,-470.0,0.00019726,2]
[362286299,1748157053012,-470.0,0.00019726,2]
[362286300,1748157053022,-430.0,0.00019726,2]
[362286301,1748157053031,-430.0,0.00019726,2]
[362286302,1748157053040,-430.0,0.00019726,2]
[362286303,1748157053050,-430.0,0.00019726,2]
[362286304,1748157053059,-470.0,0.00019726,2]
[362286305,1748157053069,-430.0,0.00019726,2]
[362286306,1748157053079,-430.0,0.00019726,2]
[362286307,1748157053089,-4430.27,0.00019726,2]
[362286308,1748157053099,-430.0,0.00019726,2]
[362286309,1748157053109,-430.0,0.00019726,2]
[362286310,1748157053119,-151.0,0.00019726,2]
[362286311,1748157053128,-430.0,0.00019726,2]
[362286312,1748157053138,-430.0,0.00019726,2]
[362286313,1748157053148,-432.25056912,0.00019726,2]
[362286314,1748157053158,-430.0,0.00019726,2]
[362286315,1748157053169,-555.07907724,0.00019726,2]
[362286316,1748157053178,-151.0,0.00019726,2]
[362286317,1748157053188,-430.0,0.00019726,2]
[362286318,1748157053199,-430.0,0.00019726,2]
[362286319,1748157053209,-709.28,0.00019726,2]
[362286320,1748157053219,-430.0,0.00019726,2]
[362286321,1748157053229,-430.0,0.00019726,2]
[362286322,1748157053238,-430.0,0.00019726,2]
[362286323,1748157053248,-430.0,0.00019726,2]
[362286324,1748157053258,-430.0,0.00019726,2]
[362286325,1748157053267,-430.0,0.00019726,2]
[362286326,1748157053277,-430.0,0.00019726,2]
[362286327,1748157053286,-430.0,0.00019726,2]
[362286328,1748157053296,-430.0,0.00019726,2]
[362286329,1748157053305,-430.0,0.00019726,2]
[362286330,1748157053315,-430.0,0.00019726,2]
[362286331,1748157053325,-430.0,0.00019726,2]
[362286332,1748157053334,-462.2398733,0.00019726,2]
[362286333,1748157053347,-430.0,0.00019726,2]
[362286334,1748157053358,-430.0,0.00019726,2]
[362286335,1748157053368,-487.12,0.00019726,2]
[362286336,1748157053377,-430.0,0.00019726,2]
[362286337,1748157053387,-556.88518405,0.00019726,2]
[362286338,1748157053396,-430.0,0.00019726,2]
[362286339,1748157053406,-430.0,0.00019726,2]
[362286340,1748157053416,-575.81,0.00019726,2]
[362286341,1748157053426,-152.89927351,0.00019726,2]
[362286342,1748157053435,-430.0,0.00019726,2]
[362286343,1748157053444,-430.0,0.00019726,2]
[362286344,1748157053454,-430.0,0.00019726,2]
[362286345,1748157053463,-430.0,0.00019726,2]
[362286346,1748157053473,-430.0,0.00019726,2]
[362286347,1748157053482,-430.0,0.00019726,2]
[362286348,1748157053491,-430.0,0.00019726,2]
[362286349,1748157053501,-430.0,0.00019726,2]
[362286350,1748157053511,-430.0,0.00019726,2]
[362286351,1748157053520,-445.35739857,0.00019726,2]
[362286352,1748157053530,-584.69,0.00019726,2]
[362286353,1748157053539,-430.0,0.00019726,2]
[362286354,1748157053549,-1400.02,0.00019726,2]
[362286355,1748157053558,-430.0,0.00019726,2]
[362286356,1748157053567,-430.0,0.00019726,2]
[362286357,1748157053576,-430.0,0.00019726,2]
[362286358,1748157053586,-430.0,0.00019726,2]
[362286359,1748157053595,-430.0,0.00019726,2]
[362286360,1748157053605,-430.0,0.00019726,2]
[362286361,1748157053615,-430.0,0.00019726,2]
[362286362,1748157053624,-430.0,0.00019726,2]
[362286363,1748157053634,-430.0,0.00019726,2]
[362286364,1748157053643,-800.36,0.00019726,2]
[362286365,1748157053653,-430.0,0.00019726,2]
[362286366,1748157053663,-430.0,0.00019726,2]
[362286367,1748157053672,-430.0,0.00019726,2]
[362286368,1748157053682,-430.0,0.00019726,2]
[362286369,1748157053691,-430.0,0.00019726,2]
[362286370,1748157053702,-774.78,0.00019726,2]
[362286371,1748157053711,-430.0,0.00019726,2]
[362286372,1748157053722,-430.0,0.00019726,2]
[362286373,1748157053732,-430.0,0.00019726,2]
[362286374,1748157053743,-430.0,0.00019726,2]
[362286375,1748157053753,-430.0,0.00019726,2]
[362286376,1748157053764,-1540.49,0.00019726,2]
[362286377,1748157053774,-430.0,0.00019726,2]
[362286378,1748157053784,-430.0,0.00019726,2]
[362286379,1748157053793,-430.0,0.00019726,2]
[362286380,1748157053803,-430.0,0.00019726,2]
[362286381,1748157053812,-430.0,0.00019726,2]
[362286382,1748157053822,-436.10316095,0.00019726,2]
[362286383,1748157053831,-430.0,0.00019726,2]
[362286384,1748157053841,-589.21,0.00019726,2]
[362286385,1748157053850,-430.0,0.00019726,2]
[362286386,1748157053860,-430.0,0.00019726,2]
[362286387,1748157053870,-430.0,0.00019726,2]
[362286388,1748157053879,-430.0,0.00019726,2]
[362286389,1748157053889,-681.27,0.00019726,2]
[362286390,1748157053899,-1442.16,0.00019726,2]
[362286391,1748157053908,-430.0,0.00019726,2]
[362286392,1748157053918,-430.0,0.00019726,2]
[362286393,1748157053927,-430.0,0.00019726,2]
[362286394,1748157053939,-430.0,0.00019726,2]
[362286395,1748157053951,-430.0,0.00019726,2]
[362286396,1748157053960,-430.0,0.00019726,2]
[362286397,1748157053970,-430.0,0.00019726,2]
[362286398,1748157053980,-430.0,0.00019726,2]
[362286399,1748157053990,-658.49,0.00019726,2]
[362286400,1748157054000,-673.43,0.00019726,2]
[362286401,1748157054010,-260.0,0.00019726,2]
[362286402,1748157054020,-430.0,0.00019726,2]
[362286403,1748157054029,-430.0,0.00019726,2]
[362286404,1748157054038,-430.0,0.00019726,2]
[362286405,1748157054048,-430.0,0.00019726,2]
[362286406,1748157054057,-404.0,0.00019752,2]
[362286407,1748157054067,-972.12132876,0.00019864,2]
[362286408,1748157054077,-500.0,0.00019907,2]
[362286409,1748157054086,-524.42590895,0.00019907,2]
[362286410,1748157054095,-500.0,0.00019907,2]
[362286411,1748157054104,-568.7533492,0.00019937,2]
[362286412,1748157054114,-994.32653755,0.0001998,2]
[362286413,1748157054123,-500.0,0.0002,2]
[362286414,1748157054132,-430.0,0.0002,2]
[362286415,1748157054142,-430.0,0.0002,2]
[362286416,1748157054151,-151.0,0.0002,2]
[362286417,1748157054160,-151.0,0.0002,2]
[362286418,1748157054170,-156.89171,0.0002,2]
[362286419,1748157054179,-287.07102073,0.0002,2]
[362286420,1748157054188,-470.0,0.0002,2]
[362286421,1748157054197,-430.0,0.0002,2]
[362286422,1748157054207,-430.0,0.0002,2]
[362286423,1748157054216,-4430.27,0.0002,2]
[362286424,1748157054225,-430.0,0.0002,2]
[362286425,1748157054235,-173.39598593,0.0002,2]
[362286426,1748157054244,-122271.82856059,0.0002,3]
[362286427,1748157054253,-430.0,0.0002,2]
[362286428,1748157054262,-430.0,0.0002,2]
[362286429,1748157054272,-160.0,0.0002,3]
[362286430,1748157054281,-168.555675,0.0002,2]
[362286431,1748157054290,-168.555675,0.0002,2]
[362286432,1748157054299,-151.0,0.0002,2]
[362286433,1748157054308,-241.196674,0.0002,2]
[362286434,1748157054317,-430.0,0.0002,2]
[362286435,1748157054327,-430.0,0.0002,2]
[362286436,1748157054336,-151.0,0.0002,2]
[362286437,1748157054345,-709.28,0.0002,2]
[362286438,1748157054355,-430.0,0.0002,2]
[362286439,1748157054364,-430.0,0.0002,2]
[362286440,1748157054374,-430.0,0.0002,2]
[362286441,1748157054383,-430.0,0.0002,2]
[362286442,1748157054392,-430.0,0.0002,2]
[362286443,1748157054401,-430.0,0.0002,2]
[362286444,1748157054410,-430.0,0.0002,2]
[362286445,1748157054419,-430.0,0.0002,2]
[362286446,1748157054427,-430.0,0.0002,2]
[362286447,1748157054437,-430.0,0.0002,2]
[362286448,1748157054446,-430.0,0.0002,2]
[362286449,1748157054455,-430.0,0.0002,2]
[362286450,1748157054465,-272.19913309,0.0002,2]
[362286451,1748157054474,-487.12,0.0002,2]
[362286452,1748157054484,-430.0,0.0002,2]
[362286453,1748157054493,-430.0,0.0002,2]
[362286454,1748157054502,-450.0,0.0002,2]
[362286455,1748157054587,-575.81,0.0002,2]
[362286456,1748157054597,-430.0,0.0002,2]
[362286457,1748157054606,-430.0,0.0002,2]
[362286458,1748157054616,-430.0,0.0002,2]
[362286459,1748157054624,-430.0,0.0002,2]
[362286460,1748157054633,-430.0,0.0002,2]
[362286461,1748157054643,-430.0,0.0002,2]
[362286462,1748157054651,-430.0,0.0002,2]
[362286463,1748157054660,-430.0,0.0002,2]
[362286464,1748157054669,-584.69,0.0002,2]
[362286465,1748157054678,-430.0,0.0002,2]
[362286466,1748157054687,-1400.02,0.0002,2]
[362286467,1748157054696,-430.0,0.0002,2]
[362286468,1748157054706,-430.0,0.0002,2]
[362286469,1748157054716,-430.0,0.0002,2]
[362286470,1748157054725,-430.0,0.0002,2]
[362286471,1748157054735,-430.0,0.0002,2]
[362286472,1748157054745,-430.0,0.0002,2]
[362286473,1748157054758,-430.0,0.0002,2]
[362286474,1748157054767,-430.0,0.0002,2]
[362286475,1748157054777,-800.36,0.0002,2]
[362286476,1748157054787,-163.44205103,0.0002,2]
[362286477,1748157054799,-430.0,0.0002,2]
[362286478,1748157054809,-430.0,0.0002,2]
[362286479,1748157054818,-430.0,0.0002,2]
[362286480,1748157054827,-430.0,0.0002,2]
[362286481,1748157054836,-774.78,0.0002,2]
[362286482,1748157054845,-572.39129115,0.0002,2]
[362286483,1748157054854,-430.0,0.0002,2]
[362286484,1748157054864,-430.0,0.0002,2]
[362286485,1748157054874,-430.0,0.0002,2]
[362286486,1748157054884,-1540.49,0.0002,2]
[362286487,1748157054893,-384.15565963,0.0002,2]
[362286488,1748157054903,-430.0,0.0002,2]
[362286489,1748157054913,-430.0,0.0002,2]
[362286490,1748157054923,-430.0,0.0002,2]
[362286491,1748157054932,-589.21,0.0002,2]
[362286492,1748157054947,-430.0,0.0002,2]
[362286493,1748157054957,-430.0,0.0002,2]
[362286494,1748157054967,-430.0,0.0002,2]
[362286495,1748157054976,-681.27,0.0002,2]
[362286496,1748157054986,-1442.16,0.0002,2]
[362286497,1748157054996,-430.0,0.0002,2]
[362286498,1748157055006,-430.0,0.0002,2]
[362286499,1748157055016,-430.0,0.0002,2]
[362286500,1748157055026,-430.0,0.0002,2]
[362286501,1748157055036,-430.0,0.0002,2]
[362286502,1748157055046,-430.0,0.0002,2]
[362286503,1748157055055,-658.49,0.0002,2]
[362286504,1748157055065,-673.43,0.0002,2]
[362286505,1748157055074,-430.0,0.0002,2]
[362286506,1748157055084,-430.0,0.0002,2]
[362286507,1748157055094,-354.78945124,0.0002,2]
[362286508,1748157055104,-430.0,0.0002,2]
[362286509,1748157055113,-587.0,0.00020005,2]
[362286510,1748157055123,-1000.0,0.00020175,2]
[362286511,1748157055133,-446.266852,0.00020187,2]
[362286512,1748157055142,-571.6513513,0.00020192,2]
[362286513,1748157055152,-158.2750078,0.00020192,2]
[362286514,1748157055162,-176.2038764,0.00020192,2]
[362286515,1748157055173,-158.2750078,0.00020192,2]
[362286516,1748157055182,-176.2038764,0.00020192,2]
[362286517,1748157055203,-571.6513513,0.00020192,2]
[362286518,1748157055213,-158.2750078,0.00020192,2]
[362286519,1748157055223,-571.6513513,0.00020192,2]
[362286520,1748157055233,-158.2750078,0.00020192,2]
[362286521,1748157055243,-571.6513513,0.00020192,2]
[362286522,1748157055253,-158.2750078,0.00020192,2]
[362286523,1748157055263,-571.6513513,0.00020192,2]
[362286524,1748157055272,-157.5234007,0.00020192,2]
[362286525,1748157055282,-388.0912756,0.00020192,2]
[362286526,1748157055291,-4430.27,0.00020273,2]
[362286527,1748157055300,-151.0,0.00020273,2]
[362286528,1748157055310,-709.28,0.00020273,2]
[362286529,1748157055320,-430.0,0.00020273,2]
[362286530,1748157055330,-430.0,0.00020273,2]
[362286531,1748157055346,-430.0,0.00020273,2]
[362286532,1748157055356,-430.0,0.00020273,2]
[362286533,1748157055365,-430.0,0.00020273,2]
[362286534,1748157055374,-430.0,0.00020273,2]
[362286535,1748157055385,-430.0,0.00020273,2]
[362286536,1748157055395,-487.12,0.00020273,2]
[362286537,1748157055404,-430.0,0.00020273,2]
[362286538,1748157055414,-430.0,0.00020273,2]
[362286539,1748157055425,-575.81,0.00020273,2]
[362286540,1748157055435,-430.0,0.00020273,2]
[362286541,1748157055445,-430.0,0.00020273,2]
[362286542,1748157055454,-322.65519947,0.00020273,2]
[362286543,1748157055463,-430.0,0.00020273,2]
[362286544,1748157055473,-430.0,0.00020273,2]
[362286545,1748157055482,-430.0,0.00020273,2]
[362286546,1748157055491,-584.69,0.00020273,2]
[362286547,1748157055501,-1400.02,0.00020273,2]
[362286548,1748157055511,-430.0,0.00020273,2]
[362286549,1748157055520,-373.72472328,0.00020273,2]
[362286550,1748157055530,-430.0,0.00020273,2]
[362286551,1748157055540,-416.47406086,0.00020273,2]
[362286552,1748157289248,447.256486,0.00013699,2]
[362286554,1748157392215,154.60661659,6.8e-07,2]
[362286555,1748157392344,154.60661659,6.8e-07,2]
[362286556,1748157392482,154.60661659,6.8e-07,2]
[362286557,1748157392647,154.60661659,6.8e-07,2]
[362286558,1748157392781,154.60661659,6.8e-07,2]
[362286559,1748157392904,154.60661659,6.8e-07,2]
[362286560,1748157427971,158.09030046,0.00015,3]
[362286561,1748157427997,16841.90969954,0.00015,3]
[362286562,1748157504094,412.63,0.00012518,2]
[362286563,1748157504502,825.26,0.00013114,2]
[362286564,1748157505464,1237.89,0.0001371,2]
[362286565,1748157505901,1650.52,0.00014306,2]
[362286566,1748157506335,2063.15,0.00014902,2]
[362286567,1748157506795,2475.78,0.00015498,2]
[362286570,1748157575310,255.08,0.00012591,2]
[362286571,1748157575712,510.16,0.0001319,2]
[362286572,1748157576182,255.08,0.0001379,2]
[362286573,1748157576207,510.16,0.0001379,2]
[362286574,1748157576589,1020.32,0.00014389,2]
[362286575,1748157576987,1275.4,0.00014989,2]
[362286576,1748157577404,1530.48,0.00015588,2]
[362286577,1748157578613,-672.55969954,0.00016188,2]
[362286578,1748157580804,-1113.00030046,0.00016188,2]
[362286579,1748157580830,-462.16969954,0.00016787,2]
[362286580,1748157584330,-1237.73,0.00016787,2]
[362286581,1748157585954,-340.74030046,0.00016787,2]
[362286585,1748157615219,5628.8639964,0.0002465,60]
[362286587,1748157644325,176.24,0.00013958,2]
[362286588,1748157644758,264.36,0.00014593,2]
[362286589,1748157645725,264.36,0.00015227,2]
[362286590,1748157645748,88.12,0.00015227,2]
[362286591,1748157646174,440.6,0.00015862,2]
[362286592,1748157693568,159.48633859,6.8e-07,2]
[362286593,1748157693669,159.48633859,6.8e-07,2]
[362286594,1748157694160,-159.48633859,0.00016496,2]
[362286595,1748157695232,-369.22366141,0.00016496,2]
[362286596,1748157714039,595.90897925,0.00021918,30]
[362286597,1748157715070,168.23,0.00013837,2]
[362286598,1748157715539,224.3,0.00014439,2]
[362286599,1748157715970,280.38,0.0001504,2]
[362286600,1748157716928,336.45,0.00015642,2]
[362286601,1748157788615,150.89,0.00014389,2]
[362286602,1748157789020,188.62,0.00014989,2]
[362286603,1748157789425,226.34,0.00015588,2]
[362286604,1748157790541,-264.07,0.00016188,2]
[362286605,1748157862647,-158.44,0.00016176,2]
[362286606,1748157862672,-18.84969954,0.00016775,2]
[362286607,1748157865410,-162.22030046,0.00016775,2]
[362286608,1748157865443,-203.71,0.00017374,2]
[362286609,1748157865467,-19.05718909,0.00017455,2]
[362286616,1748158009427,-684.97668891,0.00017455,2]
[362286617,1748158009452,-879.7789213,0.00017951,2]
[362286618,1748158009482,-262.797,0.00018383,2]
[362286619,1748158009513,-250.0,0.00018383,2]
[362286620,1748158009538,-186.18919326,0.00018706,2]
[362286621,1748158009565,-686.80973515,0.000188,2]
[362286622,1748158009590,-300.0,0.00018803,2]